{"text_format":"3","workbook":"xlsx","n_sheets":2,"sheets":["סיכום תקציב","פרטי תקציב"],"not_rendered":{"images":1,"defined_names":1},"read":"whole","date_system":"1900"}

{"sheet":"סיכום תקציב","index":0,"n_rows":28,"n_cols":7,"rows_kept":28}
[{"$nulls":6}," "]
[]
[null,"תקציב כולל לחתונה",{"v":20000,"d":"₪ 20,000"}]
[]
[null,"הוצאות","% \nהקצאה","תקציב מוקצה","עלויות \nמשוערות","עלויות \nמשוערות"]
[null,"קבלת פנים",{"v":0.5,"d":"50%"},{"$f":"תקציב_כולל_לחתונה*'סיכום תקציב'!$C6","v":{"v":10000,"d":"₪ 10,000"}},{"$f":"טבלה_קבלת_פנים[[#Totals],[עלויות משוערות]]","v":{"v":0,"d":"₪ 0"}},{"$f":"טבלה_קבלת_פנים[[#Totals],[עלויות בפועל]]","v":{"v":0,"d":"₪ 0"}}]
[null,"לבוש",{"v":0.1,"d":"10%"},{"$f":"תקציב_כולל_לחתונה*'סיכום תקציב'!$C7","v":{"v":2000,"d":"₪ 2,000"}},{"$f":"טבלה_לבוש[[#Totals],[עלויות משוערות]]","v":{"v":0,"d":"₪ 0"}},{"$f":"טבלה_לבוש[[#Totals],[עלויות בפועל]]","v":{"v":0,"d":"₪ 0"}}]
[null,"פרחים וקישוטים",{"v":0.1,"d":"10%"},{"$f":"תקציב_כולל_לחתונה*'סיכום תקציב'!$C8","v":{"v":2000,"d":"₪ 2,000"}},{"$f":"טבלה_פרחים_וקישוטים[[#Totals],[עלויות משוערות]]","v":{"v":0,"d":"₪ 0"}},{"$f":"טבלה_פרחים_וקישוטים[[#Totals],[עלויות בפועל]]","v":{"v":0,"d":"₪ 0"}}]
[null,"מוסיקה",{"v":0.1,"d":"10%"},{"$f":"תקציב_כולל_לחתונה*'סיכום תקציב'!$C9","v":{"v":2000,"d":"₪ 2,000"}},{"$f":"טבלה_מוסיקה[[#Totals],[עלויות משוערות]]","v":{"v":0,"d":"₪ 0"}},{"$f":"טבלה_מוסיקה[[#Totals],[עלויות בפועל]]","v":{"v":0,"d":"₪ 0"}}]
[null,"תמונות ווידאו",{"v":0.1,"d":"10%"},{"$f":"תקציב_כולל_לחתונה*'סיכום תקציב'!$C10","v":{"v":2000,"d":"₪ 2,000"}},{"$f":"טבלה_תמונות_ווידאו[[#Totals],[עלויות משוערות]]","v":{"v":0,"d":"₪ 0"}},{"$f":"טבלה_תמונות_ווידאו[[#Totals],[עלויות בפועל]]","v":{"v":0,"d":"₪ 0"}}]
[null,"מתנות",{"v":0.03,"d":"3%"},{"$f":"תקציב_כולל_לחתונה*'סיכום תקציב'!$C11","v":{"v":600,"d":"₪ 600"}},{"$f":"טבלה_מתנות[[#Totals],[עלויות משוערות]]","v":{"v":0,"d":"₪ 0"}},{"$f":"טבלה_מתנות[[#Totals],[עלויות בפועל]]","v":{"v":0,"d":"₪ 0"}}]
[null,"טקס",{"v":0.02,"d":"2%"},{"$f":"תקציב_כולל_לחתונה*'סיכום תקציב'!$C12","v":{"v":400,"d":"₪ 400"}},{"$f":"טבלה_טקס[[#Totals],[עלויות משוערות]]","v":{"v":0,"d":"₪ 0"}},{"$f":"טבלה_טקס[[#Totals],[עלויות בפועל]]","v":{"v":0,"d":"₪ 0"}}]
[null,"נייר מכתבים",{"v":0.02,"d":"2%"},{"$f":"תקציב_כולל_לחתונה*'סיכום תקציב'!$C13","v":{"v":400,"d":"₪ 400"}},{"$f":"טבלה_נייר_מכתבים[[#Totals],[עלויות משוערות]]","v":{"v":0,"d":"₪ 0"}},{"$f":"טבלה_נייר_מכתבים[[#Totals],[עלויות בפועל]]","v":{"v":0,"d":"₪ 0"}}]
[null,"טבעות נישואין",{"v":0.02,"d":"2%"},{"$f":"תקציב_כולל_לחתונה*'סיכום תקציב'!$C14","v":{"v":400,"d":"₪ 400"}},{"$f":"טבלה_טבעות_חתונה[[#Totals],[עלויות משוערות]]","v":{"v":0,"d":"₪ 0"}},{"$f":"טבלה_טבעות_חתונה[[#Totals],[עלויות בפועל]]","v":{"v":0,"d":"₪ 0"}}]
[null,"תחבורה",{"v":0.01,"d":"1%"},{"$f":"תקציב_כולל_לחתונה*'סיכום תקציב'!$C15","v":{"v":200,"d":"₪ 200"}},{"$f":"טבלה_תחבורה[[#Totals],[עלויות משוערות]]","v":{"v":0,"d":"₪ 0"}},{"$f":"טבלה_תחבורה[[#Totals],[עלויות בפועל]]","v":{"v":0,"d":"₪ 0"}}]
[null,"סה\"כ",{"$f":"SUM(C6:C15)","v":{"v":1,"d":"100%"}},{"$f":"SUM(D6:D15)","v":{"v":20000,"d":"₪ 20,000"}},{"v":0,"d":"₪ 0"},{"v":0,"d":"₪ 0"}]
[]
[null,"תרומות"]
[null,"מקור מימון","תרומה"]
[null,"חסכונות",{"v":10000,"d":"₪ 10,000"}]
[null,"האם והאב של בן/בת זוג 1",{"v":4000,"d":"₪ 4,000"}]
[null,"הסבים והסבתות של בן/בת זוג 1",{"v":2000,"d":"₪ 2,000"}]
[null,"האם והאב של בן/בת זוג 2",{"v":4000,"d":"₪ 4,000"}]
[null,"הסבים והסבתות של בן/בת זוג 2",{"v":4000,"d":"₪ 4,000"}]
[null,"תרומות אחרות",{"v":2000,"d":"₪ 2,000"}]
[null,"סה\"כ",{"$f":"SUBTOTAL(109,טבלה_תרומות[תרומה])","v":{"v":26000,"d":"₪ 26,000"}}]
[]
[null,{"$f":"IF(טבלה_תרומות[[#Totals],[תרומה]]<תקציב_כולל_לחתונה,\"הפרש שיש להשלים\",\"כספים נוספים זמינים\")","v":"כספים נוספים זמינים"},{"$f":"IF(טבלה_תרומות[[#Totals],[תרומה]]<תקציב_כולל_לחתונה,תקציב_כולל_לחתונה-טבלה_תרומות[[#Totals],[תרומה]],טבלה_תרומות[[#Totals],[תרומה]]-תקציב_כולל_לחתונה)","v":{"v":6000,"d":"₪ 6,000"}}]

{"sheet":"פרטי תקציב","index":1,"n_rows":80,"n_cols":4,"rows_kept":80}
[]
[null,"קבלת פנים","עלויות משוערות","עלויות בפועל"]
[null,"אולם והשכרות"]
[null,"מזון ושירות"]
[null,"משקאות"]
[null,"עוגה"]
[null,"תשלומים שונים"]
[null,"סה\"כ",{"$f":"SUBTOTAL(109,טבלה_קבלת_פנים[עלויות משוערות])","v":{"v":0,"d":"₪ 0.00"}},{"$f":"SUBTOTAL(109,טבלה_קבלת_פנים[עלויות בפועל])","v":{"v":0,"d":"₪ 0.00"}}]
[]
[null,"לבוש","עלויות משוערות","עלויות בפועל"]
[null,"טוקסידו, חליפה ו/או שמלות"]
[null,"שינויים"]
[null,"הינומה"]
[null,"אביזרים"]
[null,"שיער ואיפור"]
[null,"תשלומים שונים"]
[null,"סה\"כ",{"$f":"SUBTOTAL(109,טבלה_לבוש[עלויות משוערות])","v":{"v":0,"d":"₪ 0.00"}},{"$f":"SUBTOTAL(109,טבלה_לבוש[עלויות בפועל])","v":{"v":0,"d":"₪ 0.00"}}]
[]
[null,"פרחים וקישוטים","עלויות משוערות","עלויות בפועל"]
[null,"סידור פרחים לטקס"]
[null,"ניצנים וסלסלה של נערת פרחים"]
[null,"כרית טבעות"]
[null,"זרים"]
[null,"פרחים לדש החולצה"]
[null,"צמידי פרחים"]
[null,"קישוטים בקבלת הפנים"]
[null,"תאורה"]
[null,"תשלומים שונים"]
[null,"סה\"כ",{"$f":"SUBTOTAL(109,טבלה_פרחים_וקישוטים[עלויות משוערות])","v":{"v":0,"d":"₪ 0.00"}},{"$f":"SUBTOTAL(109,טבלה_פרחים_וקישוטים[עלויות בפועל])","v":{"v":0,"d":"₪ 0.00"}}]
[]
[null,"מוסיקה","עלויות משוערות","עלויות בפועל"]
[null,"מוסיקאים לטקס"]
[null,"מוסיקאים לשעת הקוקטייל"]
[null,"להקה לקבלת הפנים, די-ג'יי או בידור"]
[null,"מערכת סאונד או השכרה של רחבת ריקודים"]
[null,"תשלומים שונים"]
[null,"סה\"כ",{"$f":"SUBTOTAL(109,טבלה_מוסיקה[עלויות משוערות])","v":{"v":0,"d":"₪ 0.00"}},{"$f":"SUBTOTAL(109,טבלה_מוסיקה[עלויות בפועל])","v":{"v":0,"d":"₪ 0.00"}}]
[]
[null,"תמונות ווידאו","עלויות משוערות","עלויות בפועל"]
[null,"צילום"]
[null,"צילום וידאו"]
[null,"הדפסים ואלבומים נוספים"]
[null,"תשלומים שונים"]
[null,"סה\"כ",{"$f":"SUBTOTAL(109,טבלה_תמונות_ווידאו[עלויות משוערות])","v":{"v":0,"d":"₪ 0.00"}},{"$f":"SUBTOTAL(109,טבלה_תמונות_ווידאו[עלויות בפועל])","v":{"v":0,"d":"₪ 0.00"}}]
[]
[null,"מתנות","עלויות משוערות","עלויות בפועל"]
[null,"מתנות לקבלת הפנים"]
[null,"מתנות למסיבה"]
[null,"תשלומים שונים"]
[null,"סה\"כ",{"$f":"SUBTOTAL(109,טבלה_מתנות[עלויות משוערות])","v":{"v":0,"d":"₪ 0.00"}},{"$f":"SUBTOTAL(109,טבלה_מתנות[עלויות בפועל])","v":{"v":0,"d":"₪ 0.00"}}]
[]
[null,"טקס","עלויות משוערות","עלויות בפועל"]
[null,"תשלום למקום"]
[null,"תשלום לרב"]
[null,"תשלומים שונים"]
[null,"סה\"כ",{"$f":"SUBTOTAL(109,טבלה_טקס[עלויות משוערות])","v":{"v":0,"d":"₪ 0.00"}},{"$f":"SUBTOTAL(109,טבלה_טקס[עלויות בפועל])","v":{"v":0,"d":"₪ 0.00"}}]
[]
[null,"נייר מכתבים","עלויות משוערות","עלויות בפועל"]
[null,"כרטיסי 'שריינו את התאריך'"]
[null,"הזמנות ואישורי הגעה"]
[null,"תוכניות"]
[null,"כרטיסי שולחנות וסידור ישיבה"]
[null,"כרטיסי תפריטים"]
[null,"כרטיסי תודה"]
[null,"דמי דואר"]
[null,"תשלומים שונים"]
[null,"סה\"כ",{"$f":"SUBTOTAL(109,טבלה_נייר_מכתבים[עלויות משוערות])","v":{"v":0,"d":"₪ 0.00"}},{"$f":"SUBTOTAL(109,טבלה_נייר_מכתבים[עלויות בפועל])","v":{"v":0,"d":"₪ 0.00"}}]
[]
[null,"טבעות נישואין","עלויות משוערות","עלויות בפועל"]
[null,"טבעות נישואין"]
[null,"אביזרים לטבעות"]
[null,"סה\"כ",{"$f":"SUBTOTAL(109,טבלה_טבעות_חתונה[עלויות משוערות])","v":{"v":0,"d":"₪ 0.00"}},{"$f":"SUBTOTAL(109,טבלה_טבעות_חתונה[עלויות בפועל])","v":{"v":0,"d":"₪ 0.00"}}]
[]
[null,"תחבורה","עלויות משוערות","עלויות בפועל"]
[null,"השכרת רכב ראשי"]
[null,"השכרת רכב"]
[null,"הסעה לאורחים מחוץ לעיר"]
[null,"שירות חניה"]
[null,"תשלומים שונים"]
[null,"סה\"כ",{"$f":"SUBTOTAL(109,טבלה_תחבורה[עלויות משוערות])","v":{"v":0,"d":"₪ 0.00"}},{"$f":"SUBTOTAL(109,טבלה_תחבורה[עלויות בפועל])","v":{"v":0,"d":"₪ 0.00"}}]